bitfinex/quotes_ETHUSD_20230117
["timestamp","ask_amount","ask_price","bid_price","bid_amount"]
[1673965371685,0.93599529,1595.1,1594.6,12.63768]
[1673965371829,5.46529749,1595.1,1594.6,6.36682]
[1673965372047,5.47129749,1595.1,1594.6,6.36482]
[1673965372298,3.24320025,1595.1,1594.6,12.63798]
[1673965372512,3.23720025,1595.1,1594.6,12.63798]
[1673965372720,0.93599529,1595.0,1594.6,6.36682]
[1673965373325,0.88852683,1595.1,1594.6,12.63798]
[1673965373544,2.34867342,1595.2,1594.8,6.27018]
[1673965373773,2.34867342,1595.2,1594.8,6.36618]
[1673965373988,2.34867342,1595.2,1594.8,12.63655]
[1673965374244,0.93599529,1595.2,1594.8,12.63655]
[1673965374425,2.8155651,1595.2,1594.8,0.096]
[1673965374728,0.28155651,1595.1,1594.8,6.27032]
[1673965374953,1.40288697,1595.2,1594.8,12.63669]
[1673965375253,0.93248697,1595.2,1594.8,12.63669]
[1673965375832,1.41267813,1595.3,1594.8,12.63669]
[1673965376036,0.4763,1595.4,1594.9,1.0]
[1673965376265,0.4703,1595.4,1595.0,12.53878]
[1673965376586,0.65859781,1595.4,1595.0,12.63478]
[1673965376781,0.4703,1595.4,1595.0,12.63478]
[1673965377451,0.4703,1595.5,1595.0,12.63478]
[1673965377853,3.36224898,1595.7,1595.1,3.11662407]
[1673965378084,1.41267813,1595.7,1595.2,18.80547]
[1673965378275,10.7961422,1595.7,1595.2,6.36449]
[1673965378485,10.7961422,1595.7,1595.2,0.096]
[1673965378486,18.14371642,1595.6,1595.2,0.096]
[1673965378721,1.0,1595.5,1595.1,6.36511]
[1673965378870,18.20971642,1595.6,1595.1,6.36511]
[1673965379081,18.14971642,1595.6,1595.1,6.36511]
[1673965379560,11.88216642,1595.6,1595.1,12.6343]
[1673965379726,1.18821664,1595.5,1595.1,12.6343]
[1673965379941,1.07961422,1595.6,1595.1,12.6343]
[1673965380356,0.5362,1595.7,1595.1,12.6343]
[1673965380585,0.5362,1595.8,1595.1,22.02011407]
[1673965380820,0.4702,1595.8,1595.1,22.02011407]
[1673965381509,1.88287813,1595.9,1595.1,22.02011407]
[1673965381717,1.88287813,1595.9,1595.2,3.11662407]
[1673965381930,1.4807399,1595.9,1595.4,18.80394]
[1673965382139,0.4702,1595.9,1595.4,18.89994]
[1673965382383,1.41967813,1596.0,1595.5,3.11662407]
[1673965382560,1.41967813,1596.0,1595.6,12.53406]
[1673965382561,0.007,1596.0,1595.6,12.53406]
[1673965382771,0.007,1596.0,1595.6,12.63006]
[1673965383251,0.007,1596.0,1595.6,6.36303]
[1673965383573,0.007,1596.0,1595.6,6.3631]
[1673965383876,6.27266,1596.0,1595.6,0.096]
[1673965384048,0.627266,1595.9,1595.6,0.092]
[1673965384267,0.627266,1595.9,1595.6,6.26708]
[1673965384501,0.007,1596.0,1595.7,3.11662407]
[1673965384687,0.007,1596.0,1595.6,18.89754]
[1673965385035,0.007,1596.0,1595.6,15.74693407]
[1673965385459,0.007,1596.0,1595.6,6.36308]
[1673965385654,0.007,1596.0,1595.6,15.74693407]
[1673965385979,0.007,1596.0,1595.6,6.36308]
[1673965386170,0.007,1596.0,1595.6,0.096]
[1673965386390,0.007,1596.0,1595.5,9.26726]
[1673965386391,0.007,1596.0,1595.5,6.36326]
[1673965386581,0.007,1596.0,1595.6,6.26723]
[1673965386797,0.007,1596.0,1595.6,6.36323]
[1673965387455,0.007,1596.0,1595.6,13.993509]
[1673965387613,0.007,1596.0,1595.6,12.63046]
[1673965387981,0.007,1596.0,1595.6,6.36323]
[1673965388128,0.007,1596.0,1595.6,12.63046]
[1673965388821,0.007,1596.0,1595.8,1.0]
[1673965389131,0.007,1596.0,1595.9,12.5321]
[1673965389396,0.007,1596.0,1595.9,0.096]
[1673965389524,0.007,1596.0,1595.9,0.015]
[1673965389735,0.007,1596.0,1595.8,27.2378]
[1673965390351,0.007,1596.0,1595.8,20.97161]
[1673965390561,0.007,1596.0,1595.8,27.23805]
[1673965390807,0.007,1596.0,1595.9,3.11662407]
[1673965391018,0.007,1596.0,1595.9,12.38267407]
[1673965391249,0.007,1596.0,1595.9,15.6281]
[1673965392292,0.007,1596.0,1595.9,18.74472407]
[1673965392719,0.24389295,1596.4,1595.9,18.74472407]
[1673965392878,0.24389295,1596.4,1596.1,7.26494]
[1673965393093,0.24389295,1596.4,1596.2,6.11662407]
[1673965393295,0.24389295,1596.4,1596.3,15.64558407]
[1673965393546,0.24389295,1596.4,1596.3,15.74158407]
[1673965393715,0.24389295,1596.4,1596.3,6.36048]
[1673965394087,0.24389295,1596.4,1596.3,9.47710407]
[1673965394305,0.24389295,1596.4,1596.3,12.70710407]
[1673965394820,0.50935881,1596.9,1596.3,12.70710407]
[1673965394821,6.1548,1597.1,1596.6,6.701]
[1673965394979,5.7448,1597.1,1596.8,6.26244]
[1673965395360,5.6948,1597.1,1596.8,0.096]
[1673965395502,5.6948,1597.1,1596.5,0.24389294]
[1673965395718,5.6948,1597.1,1596.5,9.62400701]
[1673965396009,11.95636,1597.1,1596.5,0.33989294]
[1673965396296,5.6948,1597.1,1596.6,6.26299]
[1673965396463,5.6948,1597.1,1596.6,0.096]
[1673965396675,6.1646,1597.1,1596.5,0.24389294]
[1673965396973,6.78706,1597.1,1596.5,0.24389294]
[1673965397139,13.04862,1597.1,1596.5,0.24389294]
[1673965397348,6.78706,1597.1,1596.5,0.24389294]
[1673965397717,24.68519173,1597.1,1596.5,0.24389294]
[1673965397928,6.26232,1596.9,1596.5,0.24389294]
[1673965398204,1.096132,1596.8,1596.5,0.24389294]
[1673965398359,7.99555373,1596.8,1596.5,0.24389294]
[1673965398713,7.99555373,1596.8,1596.4,0.73167884]
[1673965398714,0.63674173,1596.7,1596.4,0.73167884]
[1673965398932,9.84992407,1596.6,1596.4,0.73167884]
[1673965399083,4.10161648,1596.5,1596.4,0.73167884]
[1673965399293,1.45499241,1596.5,1596.4,0.73167884]
[1673965399571,0.536,1596.7,1596.4,0.73167884]
[1673965399710,0.012,1596.7,1596.4,0.73167884]
[1673965399927,0.4699,1596.9,1596.4,0.73167884]
[1673965400293,3.58652407,1596.9,1596.4,0.73167884]
[1673965400678,3.58652407,1596.9,1596.1,8.47009]
[1673965400679,3.11662407,1596.5,1596.1,0.096]
[1673965400874,3.11662407,1596.5,1595.8,17.8695]
[1673965400875,4.89828648,1596.4,1595.8,14.9655]
[1673965401249,9.38141407,1596.3,1595.8,0.096]
[1673965401387,9.85187407,1596.2,1595.8,0.002]
[1673965401603,3.11662407,1596.1,1595.5,6.26762]
[1673965401811,0.4761,1596.2,1595.5,9.48024407]
[1673965401812,0.5361,1596.2,1595.5,9.48024407]
[1673965402089,0.4701,1596.3,1595.6,0.94802441]
[1673965402232,6.73461,1596.3,1595.5,0.096]
[1673965402439,6.74061,1596.3,1595.4,15.31253]
[1673965402652,0.006,1596.3,1595.5,9.38414407]
[1673965402864,0.002,1596.3,1595.6,1.0]
[1673965403118,0.126,1596.8,1595.8,18.79923]
[1673965403334,0.06845,1596.7,1596.1,6.26499]
[1673965403504,0.06845,1596.7,1596.1,6.36099]
[1673965403712,0.06845,1596.7,1596.1,7.36118]
[1673965403929,6.96810173,1596.7,1596.1,0.096]
[1673965404138,6.96810173,1596.7,1595.9,1.954923]
[1673965404139,2.59919173,1596.7,1596.0,6.26555]
[1673965404347,2.59919173,1596.7,1596.1,0.626555]
[1673965404348,0.06845,1596.7,1596.1,0.626555]
[1673965404560,0.06845,1596.7,1596.1,6.891625]
[1673965404811,0.06845,1596.7,1596.1,0.722555]
[1673965405004,0.47,1596.6,1596.0,0.096]
[1673965405546,14.8429,1596.5,1595.6,0.096]
[1673965405738,14.8429,1596.5,1595.6,6.26713]
[1673965405739,4.85800001,1596.3,1595.6,6.26713]
[1673965405912,4.85800001,1596.3,1595.6,6.36313]
[1673965406125,4.85800001,1596.3,1595.7,6.26673]
[1673965406344,4.85800001,1596.3,1595.8,0.626673]
[1673965406772,4.85800001,1596.3,1595.9,1.0]
[1673965406979,4.85800001,1596.3,1596.0,6.26558]
[1673965407190,4.85800001,1596.3,1596.1,6.11662407]
[1673965407407,4.85800001,1596.3,1596.2,15.64636407]
[1673965407597,4.85800001,1596.3,1596.2,19.3791058]
[1673965407807,4.85800001,1596.3,1596.2,20.3791058]
[1673965408140,0.06,1596.9,1596.4,0.066]
[1673965408350,5.6948,1597.1,1596.8,5.60762407]
[1673965408563,5.6948,1597.1,1596.9,21.90301407]
[1673965408877,5.6948,1597.1,1596.9,0.096]
[1673965409066,5.6948,1597.1,1596.6,6.26324]
[1673965409277,5.6948,1597.1,1596.9,6.26208]
[1673965409488,5.6948,1597.1,1596.9,6.984288]
[1673965409738,5.6948,1597.1,1597.0,10.37836407]
[1673965409940,5.6948,1597.1,1597.0,14.72536407]
[1673965410326,0.06,1597.2,1597.1,1.0]
[1673965410591,0.4697,1597.7,1597.1,10.26134]
[1673965410755,0.4697,1597.7,1597.2,8.538024]
[1673965410967,6.267697,1597.8,1597.2,0.096]
[1673965411224,6.267697,1597.8,1597.0,13.9113]
[1673965411225,0.572,1597.5,1597.0,14.0073]
[1673965411399,0.572,1597.5,1597.0,21.51994]
[1673965411606,0.572,1597.5,1597.1,8.413274]
[1673965411816,0.572,1597.5,1597.1,0.096]
[1673965412113,7.75928005,1597.5,1597.0,0.096]
[1673965412322,7.75928005,1597.5,1596.4,0.075]
[1673965412323,1.245,1597.1,1596.4,0.075]
[1673965412637,6.73195,1597.0,1596.2,14.4798]
[1673965412791,7.37444173,1597.0,1596.2,14.54766]
[1673965413006,7.0011859,1596.9,1596.2,0.16386]
[1673965413222,3.58652407,1596.8,1595.9,8.35901]
[1673965413528,3.58652407,1596.8,1595.9,0.096]
[1673965413529,1.24,1596.5,1595.9,0.096]
[1673965413753,4.82662407,1596.5,1595.7,36.87276]
[1673965413982,4.36762407,1596.4,1595.7,0.096]
[1673965414156,4.36762407,1596.4,1595.6,14.4057865]
[1673965414157,4.80438648,1596.3,1595.8,0.06787]
[1673965414581,0.605,1596.1,1595.8,0.06787]
[1673965415366,3.11662407,1596.0,1595.8,0.06787]
[1673965415810,3.11662407,1595.9,1595.8,0.06787]
[1673965416006,0.5342,1596.0,1595.8,0.06787]
[1673965416317,0.605,1596.1,1595.9,1.65855463]
[1673965416473,0.605,1596.1,1595.9,11.21369116]
[1673965416678,0.605,1596.1,1596.0,5.43148407]
[1673965416937,0.605,1596.1,1596.0,19.30980407]
[1673965417100,0.605,1596.1,1596.0,22.30980407]
[1673965417313,0.605,1596.1,1596.0,7.9172258]
[1673965417525,1.52329005,1596.9,1596.2,1.0]
[1673965417869,2.65867813,1597.0,1596.4,6.26405]
[1673965417870,0.066,1597.0,1596.4,6.26405]
[1673965418086,0.92739005,1597.2,1596.6,12.52639]
[1673965418254,0.92739005,1597.2,1596.6,12.52839]
[1673965418464,0.92739005,1597.2,1596.6,15.73901407]
[1673965418726,1.39719005,1597.2,1596.7,0.90715587]
[1673965418898,3.11662407,1597.1,1596.6,0.096]
[1673965419116,4.35662407,1597.1,1596.5,3.0]
[1673965419307,2.87586818,1597.2,1596.6,9.37982407]
[1673965419308,0.066,1597.2,1596.6,9.37982407]
[1673965419519,0.92739005,1597.3,1596.7,6.11662407]
[1673965419735,0.92739005,1597.3,1596.8,11.61894407]
[1673965419938,1.41867813,1597.4,1597.0,18.78477]
[1673965419939,0.92739005,1597.4,1597.0,18.78477]
[1673965420147,2.40606818,1597.6,1597.2,6.26087]
[1673965420403,0.92739005,1597.6,1597.2,6.35687]
[1673965420946,0.92739005,1597.6,1597.3,3.11662407]
[1673965421152,3.30224898,1597.7,1597.3,3.11662407]
[1673965421153,0.006,1597.7,1597.4,13.77134]
[1673965421304,0.002,1597.7,1597.4,7.73351721]
[1673965421509,0.93645705,1597.8,1597.4,0.096]
[1673965421760,0.93645705,1597.8,1597.3,7.35653]
[1673965421985,0.92739005,1597.7,1597.3,0.096]
[1673965422153,0.92739005,1597.6,1597.1,3.0]
[1673965422364,4.04401412,1597.5,1597.0,0.096]
[1673965422599,5.44841553,1597.4,1596.8,0.096]
[1673965422949,1.251,1597.0,1596.6,14.9056]
[1673965423094,2.17839005,1597.1,1596.6,0.096]
[1673965423317,3.11662407,1597.0,1596.4,0.096]
[1673965423532,1.0,1596.8,1596.2,0.096]
[1673965423759,3.21662407,1596.7,1596.2,0.0028]
[1673965423973,11.10112407,1596.6,1596.1,1.21199999]
[1673965424268,3.11662407,1596.5,1596.1,1.20999999]
[1673965424475,2.715,1596.4,1596.1,1.20999999]
[1673965424722,2.715,1596.4,1596.0,0.02394653]
[1673965424723,3.11662407,1596.2,1596.0,0.02394653]
[1673965424940,3.42828648,1596.1,1596.0,0.02394653]
[1673965425111,0.5361,1596.2,1596.0,0.02394653]
[1673965425330,0.4701,1596.2,1596.0,0.02394653]
[1673965425541,0.4701,1596.3,1596.0,0.02394653]
[1673965426313,0.47,1596.6,1596.0,7.60331653]
[1673965426527,3.58662407,1596.6,1596.1,0.06786]
[1673965426678,0.25866241,1596.5,1596.1,0.06786]
[1673965427110,8.55653419,1596.5,1596.1,0.06786]
[1673965427429,3.11662407,1596.4,1596.1,0.06786]
[1673965427635,1.46339005,1596.5,1596.1,0.06786]
[1673965427846,0.99339005,1596.7,1596.1,0.06786]
[1673965428110,0.92739005,1596.8,1596.3,6.26442]
[1673965428281,2.59079618,1596.9,1596.4,1.251]
[1673965428488,0.250728,1596.9,1596.5,22.90712407]
[1673965428725,0.250728,1596.9,1596.8,6.26252]
[1673965428895,0.250728,1596.9,1596.8,0.0928]
[1673965429108,0.250728,1596.9,1596.6,0.0948]
[1673965429367,0.250728,1596.9,1596.6,0.76093]
[1673965430361,0.250728,1596.9,1596.6,1.76093]
[1673965430581,0.250728,1596.9,1596.6,0.76093]
[1673965430822,0.250728,1596.9,1596.6,7.02413]
[1673965431055,0.250728,1596.9,1596.6,7.11893]
[1673965431208,0.250728,1596.9,1596.7,0.711893]
[1673965431574,0.250728,1596.9,1596.6,0.0948]
[1673965431788,0.250728,1596.9,1596.4,4.3408]
[1673965431789,1.17811805,1596.9,1596.4,4.3408]
[1673965431938,1.17811805,1596.9,1596.4,3.0]
[1673965432151,1.17811805,1596.9,1596.3,0.0948]
[1673965432152,4.29474212,1596.9,1596.3,0.0948]
[1673965432418,0.4699,1596.8,1596.3,15.64552407]
[1673965432608,0.250728,1596.9,1596.7,1.251]
[1673965432939,0.250728,1596.9,1596.7,7.51384]
[1673965433158,0.250728,1596.9,1596.8,3.11662407]
[1673965433305,0.99339005,1597.3,1596.8,4.36362407]
[1673965433515,0.92739005,1597.3,1596.9,6.69849241]
[1673965433848,4.04401412,1597.3,1596.9,0.0948]
[1673965434038,5.45669225,1597.3,1596.8,3.0]
[1673965434247,2.34606818,1597.3,1596.8,3.0]
[1673965434638,0.92739005,1597.2,1596.8,3.0]
[1673965434813,0.92739005,1597.2,1596.7,0.0948]
[1673965434997,0.92739005,1597.2,1596.8,3.11662407]
[1673965435210,0.99339005,1597.4,1597.1,1.251]
[1673965435466,0.99339005,1597.4,1597.1,10.62868407]
[1673965435467,0.92739005,1597.4,1597.1,10.62868407]
[1673965435631,0.92739005,1597.4,1597.1,10.72348407]
[1673965435840,2.34006818,1597.4,1597.1,0.0948]
[1673965436038,4.04401412,1597.3,1596.9,0.0948]
[1673965436247,4.04401412,1597.3,1597.0,3.11662407]
[1673965436248,2.34006818,1597.2,1597.0,3.11662407]
[1673965436507,0.066,1597.3,1596.9,6.26208]
[1673965436725,0.99339005,1597.3,1596.8,9.35698]
[1673965436934,0.92739005,1597.3,1596.9,3.11662407]
[1673965437174,0.006,1597.4,1597.2,1.251]
[1673965437458,0.92739005,1597.6,1597.2,10.62842407]
[1673965437666,0.92739005,1597.6,1597.3,1.248]
[1673965437817,0.92739005,1597.6,1597.3,7.50832]
[1673965438034,0.92739005,1597.6,1597.3,7.60312]
[1673965438292,0.92739005,1597.5,1597.3,0.0948]
[1673965438450,0.92739005,1597.5,1597.0,9.66812241]
[1673965438660,0.92739005,1597.5,1597.2,18.78282]
[1673965438876,2.34006818,1597.6,1597.2,6.35572]
[1673965439121,0.92739005,1597.5,1597.2,0.0948]
[1673965439334,0.92739005,1597.5,1597.1,0.0948]
[1673965439674,0.92739005,1597.5,1597.2,3.11662407]
[1673965439833,4.04401412,1597.4,1597.1,0.0948]
[1673965440193,0.92739005,1597.4,1596.9,6.26212]
[1673965440499,1.94837813,1597.5,1597.1,6.26127]
[1673965440500,2.34006818,1597.5,1597.1,6.26127]
[1673965440676,0.92739005,1597.4,1597.1,0.0948]
[1673965440884,0.92739005,1597.4,1597.2,3.11662407]
[1673965441236,2.41927085,1597.6,1597.3,9.37710407]
[1673965441237,0.99339005,1597.6,1597.3,9.37710407]
[1673965441447,0.92739005,1597.6,1597.3,9.47190407]
[1673965441759,0.92739005,1597.6,1597.3,0.0948]
[1673965441931,0.92739005,1597.6,1597.3,3.11662407]
[1673965442147,2.34006818,1597.7,1597.4,0.31166241]
[1673965442370,0.92739005,1597.7,1597.4,9.37654407]
[1673965442554,4.04401412,1597.7,1597.4,0.0948]
[1673965442924,4.04401412,1597.7,1597.0,6.35632]
[1673965442925,0.92739005,1597.6,1597.0,6.35632]
[1673965443093,1.00245705,1597.8,1597.5,3.11662407]
[1673965443448,1.00245705,1597.8,1597.6,3.11662407]
[1673965443449,2.34913518,1597.8,1597.6,3.11662407]
[1673965443600,0.009067,1597.8,1597.7,15.94626648]
[1673965443816,0.009067,1597.8,1597.7,16.04106648]
[1673965445233,0.009067,1597.8,1597.7,12.92444241]
[1673965445458,0.009067,1597.8,1597.7,16.04106648]
[1673965446003,0.009067,1597.8,1597.7,19.04106648]
[1673965446376,0.009067,1597.8,1597.7,20.04106648]
[1673965446972,7e-06,1597.8,1597.7,20.04106648]
[1673965447760,0.00955925,1598.0,1597.8,1.0]
[1673965447978,0.006,1598.1,1598.0,1.0]
[1673965448125,0.21474992,1598.4,1598.0,25.89008407]
[1673965448334,0.21474992,1598.4,1598.0,6.35262]
[1673965448543,0.21474992,1598.4,1598.0,0.0948]
[1673965448808,0.21474992,1598.4,1598.0,0.017]
[1673965448967,1.62742805,1598.4,1597.7,0.0948]
[1673965449180,0.6322428,1598.3,1597.7,9.37552407]
[1673965449536,3.74886687,1598.3,1597.7,0.0948]
[1673965449792,1.0,1598.2,1597.5,6.35451]
[1673965449912,0.4695,1598.1,1597.5,9.47113407]
[1673965450121,0.4695,1598.2,1597.6,3.11662407]
[1673965450363,0.4695,1598.2,1597.7,3.11662407]
[1673965450598,8.73725992,1598.6,1597.6,6.259]
[1673965450599,3.09641861,1598.7,1597.6,6.3538]
[1673965450822,0.85236692,1600.0,1598.6,15.505]
[1673965451049,0.85236692,1600.0,1599.7,6.24850614]
[1673965451177,1.18523669,1599.9,1599.7,6.18800614]
[1673965451381,1.18523669,1599.9,1599.7,0.002]
[1673965451704,7.43579669,1599.9,1599.2,0.096]
[1673965452029,7.43579669,1599.9,1599.0,2.48226572]
[1673965452030,7.25081,1599.8,1599.0,12.48226572]
[1673965452218,0.725081,1599.7,1599.0,2.57826572]
[1673965452436,6.25179,1599.6,1599.0,2.48226572]
[1673965452749,8.0,1599.4,1598.9,1.40193577]
[1673965452981,8.0,1599.1,1598.8,0.019]
[1673965453292,8.0,1599.1,1598.3,0.63224279]
[1673965453293,6.72341,1599.0,1598.3,0.63224279]
[1673965453506,6.72341,1599.0,1598.0,0.075]
[1673965453507,0.672341,1598.9,1598.0,0.075]
[1673965453718,0.672341,1598.9,1597.8,0.096]
[1673965453719,6.25514,1598.7,1597.8,0.096]
[1673965454071,1.505,1598.3,1597.0,6.26148]
[1673965454309,1.5,1598.1,1597.6,0.012]
[1673965454596,0.4695,1598.2,1597.6,0.012]
[1673965454597,0.4695,1598.2,1597.6,6.25933]
[1673965454746,1.4695,1598.2,1597.6,6.27333]
[1673965454957,0.72265,1598.2,1597.6,6.32533]
[1673965455202,0.72265,1598.2,1597.6,0.066]
[1673965455203,0.4695,1598.2,1597.6,0.066]
[1673965455428,0.4695,1598.2,1597.6,0.01]
[1673965455429,6.25721,1598.2,1597.6,0.01]
[1673965455638,0.4695,1598.1,1597.3,6.26046]
[1673965455809,0.4695,1598.1,1597.3,0.056]
[1673965456019,6.72701,1598.1,1597.2,0.066]
[1673965456213,0.672701,1598.0,1597.1,7.63474]
[1673965456429,0.4696,1597.9,1597.1,6.63474]
[1673965456635,0.4696,1597.9,1597.2,6.2608]
[1673965456864,0.012,1598.2,1597.5,20.2815]
[1673965457094,0.06,1598.4,1597.8,18.77546]
[1673965457095,0.03,1598.4,1597.8,18.77546]
[1673965457378,8.42625,1599.0,1598.1,12.51454]
[1673965457379,0.738341,1598.9,1598.1,12.51454]
[1673965457532,0.4693,1598.8,1598.1,12.51654]
[1673965457743,0.4693,1598.8,1598.1,12.84714]
[1673965457964,0.4693,1599.0,1598.1,12.84714]
[1673965458135,0.4693,1599.0,1598.1,13.48388173]
[1673965458362,8.0,1598.9,1598.1,0.96934173]
[1673965458591,1.2693,1598.8,1598.0,0.066]
[1673965458749,1.2693,1598.8,1597.9,0.066]
[1673965458750,8.0,1598.6,1597.9,0.066]
[1673965458962,0.4694,1598.5,1597.7,0.045]
[1673965459191,0.4694,1598.5,1597.7,6.25893]
[1673965459435,7.404433,1598.5,1597.7,0.066]
[1673965459749,1.214503,1598.5,1597.6,6.25934]
[1673965459964,0.4694,1598.6,1597.6,6.32534]
[1673965460184,0.4694,1598.6,1597.7,1.0]
[1673965460350,0.4693,1598.8,1597.9,12.51589]
[1673965460546,1.0,1599.9,1598.7,14.0]
[1673965460755,1.0,1599.9,1599.2,14.0]
[1673965461146,1.0,1599.9,1599.4,25.0092]
[1673965461335,0.52492892,1600.2,1599.8,1.503]
[1673965461336,0.23121882,1600.2,1599.8,1.503]
[1673965461484,0.04123199,1600.2,1599.9,25.21514]
[1673965461695,0.04123199,1600.2,1599.9,25.28114]
[1673965461949,0.02638879,1600.3,1599.9,25.28114]
[1673965462159,0.02111103,1600.2,1599.9,25.28114]
[1673965462323,0.02111103,1600.3,1599.9,25.28114]
[1673965462324,0.04222206,1600.3,1599.9,19.03083]
[1673965462536,0.04222206,1600.3,1600.1,18.7488]
[1673965462745,0.04222206,1600.3,1600.1,20.5572]
[1673965463414,0.02111103,1600.3,1600.1,20.5572]
[1673965464071,0.02111103,1600.3,1600.1,20.3198]
[1673965464211,0.02111103,1600.4,1600.1,20.3198]
[1673965464426,0.4687,1600.9,1600.1,20.3198]
[1673965464427,0.00711758,1601.6,1600.5,6.37467617]
[1673965464670,0.440263,1602.6,1601.9,0.55418389]
[1673965464671,8.0,1602.1,1601.9,0.55418389]
[1673965464962,1.0,1601.9,1601.4,0.066]
[1673965465341,1.0,1601.9,1600.6,0.09]
[1673965465342,12.49038,1601.3,1600.6,0.09]
[1673965465475,8.0,1600.7,1599.6,6.72027]
[1673965465684,8.0,1600.7,1600.1,0.075]
[1673965465685,0.4688,1600.6,1600.1,0.075]
[1673965465946,0.4688,1600.6,1600.1,0.06769]
[1673965466119,6.2477,1600.6,1600.1,0.06769]
[1673965466326,0.4688,1600.5,1600.1,0.06769]
[1673965466535,1.14105,1600.5,1600.1,0.06769]
[1673965466747,1.14105,1600.5,1599.7,6.34696]
[1673965466959,8.0,1600.2,1599.7,0.096]
[1673965467213,6.25,1600.0,1598.9,1.075]
[1673965467368,6.25135,1599.7,1599.0,0.06774]
[1673965467577,1.094235,1599.6,1599.0,0.06774]
[1673965467846,6.72087,1599.6,1599.0,0.06774]
[1673965468056,26.75751,1599.4,1598.5,0.171]
[1673965468208,6.25358,1599.1,1598.5,0.06776]
[1673965468417,0.4693,1599.0,1598.5,0.06776]
[1673965468631,7.25439,1598.9,1598.5,0.06776]
[1673965468893,1.194739,1598.8,1598.5,0.06776]
[1673965469117,6.25508,1598.7,1598.5,0.06776]
[1673965469266,0.4694,1598.6,1598.5,0.06776]
[1673965470367,0.4694,1598.6,1598.5,0.86376]
[1673965470556,0.064,1598.7,1598.5,0.86376]
[1673965470732,6.25162,1599.6,1599.3,0.4693]
[1673965470943,1.0,1599.3,1598.9,0.017]
[1673965471256,6.2539,1599.0,1598.9,0.06774]
[1673965471460,6.7292,1599.0,1598.3,1.999]
[1673965471676,0.4693,1598.9,1598.4,0.06776]
[1673965471933,0.4693,1598.9,1598.1,8.35237]
[1673965471934,0.5353,1599.0,1598.3,6.25657]
[1673965472145,0.006,1599.0,1598.5,6.72504]
[1673965472318,7.51726,1599.5,1598.5,6.72504]
[1673965472319,0.4692,1599.4,1598.5,7.45778173]
[1673965472549,0.4692,1599.4,1598.6,0.63674173]
[1673965472763,0.4692,1599.4,1598.8,6.25459]
[1673965473021,0.267,1599.5,1598.9,0.4693]
[1673965473172,0.066,1599.7,1599.6,0.00199999]
[1673965473383,6.72032,1599.7,1599.6,0.00199999]
[1673965473591,8.024046,1599.7,1599.6,0.00199999]
[1673965473911,0.006,1599.7,1599.6,0.00199999]
[1673965474168,1.0,1599.9,1599.6,0.79799999]
[1673965474169,0.469,1599.9,1599.6,0.79799999]
[1673965474535,6.78477,1600.1,1599.6,0.79799999]
[1673965474745,0.469,1600.0,1599.6,0.79799999]
[1673965474961,0.469,1600.1,1599.6,0.79799999]
[1673965475434,9.36651407,1600.1,1599.6,0.00199999]
[1673965475664,9.36651407,1600.1,1600.0,3.11662407]
[1673965475665,2.17972407,1600.1,1600.0,3.11662407]
[1673965475806,0.05,1600.2,1600.1,1.0]
[1673965476165,0.04,1600.4,1600.1,13.83522407]
[1673965476166,0.004,1600.4,1600.1,13.83522407]
[1673965476422,0.06,1601.3,1600.4,1.0]
[1673965476591,0.03,1601.3,1600.5,5.09042407]
[1673965476955,6.71356,1601.3,1600.6,3.11662407]
[1673965477169,0.671356,1601.2,1600.6,3.11662407]
[1673965477349,0.066,1601.3,1601.0,3.11662407]
[1673965477680,8.21366,1601.9,1601.1,3.11662407]
[1673965477681,0.0222,1601.2,1601.1,3.11662407]
[1673965478044,0.0222,1601.2,1601.0,0.5647]
[1673965478308,6.3087,1601.9,1601.1,3.11662407]
[1673965478521,0.63087,1601.8,1601.2,3.11662407]
[1673965478691,0.63087,1601.8,1601.1,0.4687]
[1673965478692,0.066,1602.1,1601.3,3.11662407]
[1673965478884,0.65225838,1602.0,1601.4,3.11662407]
[1673965479098,0.65225838,1602.0,1601.5,3.11662407]
[1673965479357,0.4683,1602.3,1601.7,3.11662407]
[1673965479571,0.4683,1602.4,1601.9,3.11662407]
[1673965479727,0.4683,1602.5,1601.9,3.11662407]
[1673965479937,0.4683,1602.5,1601.7,0.096]
[1673965479938,8.0,1602.4,1601.7,0.096]
[1673965480284,0.006,1602.4,1602.1,3.11662407]
[1673965480475,0.440263,1602.6,1602.1,3.11662407]
[1673965480671,0.440263,1602.6,1601.9,0.096]
[1673965480881,0.440263,1602.6,1602.0,3.11662407]
[1673965481091,0.4683,1602.5,1601.8,0.096]
[1673965481301,20.94909,1602.5,1601.8,0.09]
[1673965481570,8.0,1601.9,1600.8,1.948]
[1673965481726,6.24366,1601.7,1601.1,0.004]
[1673965481935,6.24366,1601.7,1600.7,1.945]
[1673965481936,1.092866,1601.6,1600.7,2.066]
[1673965482183,1.092866,1601.6,1600.7,8.19218]
[1673965482410,0.4685,1601.6,1600.7,8.28318]
[1673965482588,0.4685,1601.6,1600.7,8.18318]
[1673965483303,0.06,1601.8,1600.7,8.18318]
[1673965483304,6.24301,1601.8,1600.7,8.18318]
[1673965483502,9.36003407,1601.7,1600.7,8.18318]
[1673965483717,3.58512407,1601.6,1600.7,1.936]
[1673965483927,0.35851241,1601.5,1600.7,8.09215]
[1673965484190,0.4686,1601.4,1600.7,14.43041]
[1673965484405,0.126,1601.8,1600.8,4.62162407]
[1673965484557,7.30238,1602.0,1601.1,6.2457]
[1673965484767,0.016,1602.0,1601.2,3.11662407]
[1673965485042,0.01,1602.0,1601.2,9.36169407]
[1673965485203,6.24231,1602.0,1601.2,0.087]
[1673965485397,6.24231,1602.0,1601.1,0.004]
[1673965485398,0.624231,1601.9,1601.3,3.11662407]